bitfinex-derivatives/quotes_SOLF0:USTF0_20251020
["timestamp","ask_amount","ask_price","bid_price","bid_amount"]
[1760959425631,4.6978,191.55,191.49,7.5591]
[1760959426824,2.82,191.54,191.51,2.17985974]
[1760959428624,2.63,191.54,191.51,2.17985974]
[1760959429229,2.63,191.54,191.51,4.96985974]
[1760959431138,2.63,191.53,191.47,2.17985974]
[1760959431326,2.63,191.53,191.46,2.79]
[1760959431327,2.63,191.53,191.46,4.96985974]
[1760959432026,4.6986,191.52,191.46,4.96985974]
[1760959432227,2.63,191.53,191.49,2.79]
[1760959432426,2.63,191.55,191.49,2.79]
[1760959432826,2.63,191.55,191.48,2.17985974]
[1760959433234,4.6986,191.52,191.48,2.17985974]
[1760959433437,2.63,191.51,191.48,4.96985974]
[1760959434036,4.6986,191.52,191.49,2.79]
[1760959434539,7.3281,191.54,191.48,9.66915974]
[1760959435829,4.6981,191.54,191.51,2.79]
[1760959436736,4.6981,191.54,191.49,4.6991]
[1760959436737,4.6981,191.54,191.5,2.79]
[1760959437138,4.6981,191.54,191.51,2.79]
[1760959437836,2.63,191.53,191.49,4.6991]
[1760959438132,7.3283,191.53,191.47,9.66945974]
[1760959438337,4.80985974,191.57,191.49,2.17985974]
[1760959438533,7.89443186,191.56,191.49,2.17985974]
[1760959439427,3.932993,191.56,191.49,2.17985974]
[1760959439732,4.80985974,191.57,191.49,2.17985974]
[1760959440036,7.3279,191.55,191.49,6.87895974]
[1760959440236,2.63,191.55,191.49,6.87895974]
[1760959440437,2.63,191.55,191.49,4.6991]
[1760959442032,2.63,191.52,191.48,2.79]
[1760959442434,7.3286,191.52,191.48,2.79]
[1760959442835,7.3286,191.52,191.47,6.87945974]
[1760959443934,7.3286,191.52,191.48,2.79]
[1760959444134,7.3286,191.52,191.47,6.87945974]
[1760959444741,7.3286,191.52,191.48,2.79]
[1760959445335,7.3286,191.52,191.47,6.87945974]
[1760959445536,7.3286,191.52,191.48,2.79]
[1760959445941,7.3286,191.52,191.47,6.87945974]
[1760959446242,7.3286,191.52,191.48,2.79]
[1760959446944,2.63,191.51,191.48,2.79]
[1760959447440,2.63,191.51,191.36,12.95196546]
[1760959447441,4.80985974,191.5,191.44,2.79]
[1760959447651,2.17985974,191.48,191.4,4.96985974]
[1760959448043,4.6998,191.47,191.4,9.67105974]
[1760959448251,7.3298,191.47,191.4,9.67105974]
[1760959448550,4.7001,191.46,191.4,4.96985974]
[1760959448750,2.63,191.47,191.4,4.96985974]
[1760959449048,2.63,191.47,191.41,2.79]
[1760959449240,6.87895974,191.5,191.43,2.79]
[1760959449547,6.42656108,191.59,191.34,43.46]
[1760959449548,2.63,191.53,191.46,2.17985974]
[1760959449847,2.17985974,191.52,191.45,2.79]
[1760959450039,2.63,191.49,191.45,2.79]
[1760959450642,2.63,191.48,191.45,2.79]
[1760959451349,2.63,191.51,191.44,2.17985974]
[1760959451645,2.63,191.51,191.45,2.79]
[1760959452254,7.3288,191.51,191.45,7.4901]
[1760959452846,4.6991,191.5,191.44,2.17985974]
[1760959453050,2.63,191.49,191.43,4.7006]
[1760959453449,2.63,191.49,191.42,2.79]
[1760959454339,4.699,191.5,191.45,2.17985974]
[1760959454544,2.61,191.51,191.45,4.81985974]
[1760959454746,40.34,191.59,191.47,4.81985974]
[1760959454747,2.61,191.56,191.47,4.81985974]
[1760959455052,2.61,191.56,191.5,2.64]
[1760959455246,42.51985974,191.59,191.49,2.17985974]
[1760959455247,2.61,191.54,191.49,2.17985974]
[1760959455550,2.61,191.54,191.38,9.4036]
[1760959455746,2.61,191.54,191.45,2.17985974]
[1760959455947,4.6983,191.53,191.47,2.17985974]
[1760959456150,4.74873208,191.58,191.52,2.17985974]
[1760959456151,2.61,191.58,191.52,2.17985974]
[1760959456354,2.61,191.57,191.53,2.64]
[1760959456553,2.61,191.57,191.54,2.17985974]
[1760959457158,2.61,191.62,191.54,4.81985974]
[1760959457353,2.17985974,191.57,191.42,2.86]
[1760959457544,2.67,191.54,191.46,2.17985974]
[1760959457856,4.6984,191.53,191.46,5.03985974]
[1760959459554,2.67,191.54,191.46,5.03985974]
[1760959459753,2.67,191.54,191.48,2.17985974]
[1760959460154,4.6978,191.55,191.51,2.86]
[1760959460550,4.6973,191.57,191.51,2.86]
[1760959461057,7.3677,191.56,191.51,2.86]
[1760959461455,2.67,191.55,191.51,2.86]
[1760959462664,2.17985974,191.57,191.48,2.17985974]
[1760959462861,2.67,191.54,191.48,2.17985974]
[1760959463356,4.699,191.5,191.46,5.03985974]
[1760959463556,7.369,191.5,191.46,5.03985974]
[1760959463752,2.67,191.5,191.46,5.03985974]
[1760959465162,2.67,191.59,191.49,2.86]
[1760959465460,7.89997591,191.58,191.52,2.17985974]
[1760959465654,2.67,191.57,191.5,2.17985974]
[1760959465855,2.67,191.57,191.49,2.86]
[1760959465856,6.6435542,191.57,191.49,2.86]
[1760959466055,10.56978779,191.57,191.49,2.86]
[1760959466360,4.6976,191.56,191.5,2.17985974]
[1760959467459,2.67,191.57,191.52,2.17985974]
[1760959467762,4.6971,191.58,191.52,2.17985974]
[1760959469860,4.6971,191.58,191.51,2.86]
[1760959470060,4.6971,191.58,191.52,2.17985974]
[1760959470254,2.67,191.57,191.51,2.86]
[1760959470451,2.67,191.57,191.51,5.03985974]
[1760959470654,7.3675,191.57,191.51,5.03985974]
[1760959471357,7.3675,191.57,191.51,2.86]
[1760959471554,2.67,191.61,191.51,2.86]
[1760959471761,2.17985974,191.6,191.52,2.17985974]
[1760959471960,2.67,191.59,191.52,2.17985974]
[1760959472162,2.17985974,191.58,191.51,2.86]
[1760959472664,4.6972,191.58,191.52,2.17985974]
[1760959473462,4.6972,191.58,191.51,2.86]
[1760959473463,4.6974,191.57,191.51,5.03985974]
[1760959475059,7.3674,191.57,191.51,2.86]
[1760959475568,2.67,191.55,191.51,2.86]
[1760959476861,7.3679,191.55,191.49,4.699]
[1760959477257,7.3679,191.55,191.48,2.17985974]
[1760959477462,6.87795974,191.54,191.47,7.5596]
[1760959478162,4.6981,191.54,191.48,2.17985974]
[1760959480767,2.67,191.59,191.52,2.17985974]
[1760959481158,10.58920332,191.59,191.52,2.17985974]
[1760959481359,2.67,191.59,191.52,2.17985974]
[1760959481564,4.6974,191.57,191.53,2.86]
[1760959482869,4.6976,191.56,191.53,2.86]
[1760959483866,4.6971,191.58,191.54,2.86]
[1760959484074,7.3671,191.58,191.54,2.86]
[1760959484270,2.17985974,191.55,191.44,2.86]
[1760959484570,7.3681,191.54,191.46,5.03985974]
[1760959484963,4.6981,191.54,191.48,2.17985974]
[1760959485175,4.6981,191.54,191.48,5.03985974]
[1760959487576,2.83,191.51,191.45,4.7001]
[1760959489077,7.5289,191.51,191.45,4.7001]
[1760959490081,6.75763454,191.55,191.47,2.82]
[1760959490285,2.83,191.55,191.47,2.82]
[1760959490484,2.83,191.55,191.49,3.4081933]
[1760959490680,2.83,191.59,191.5,2.82]
[1760959490885,6.75644938,191.59,191.5,2.82]
[1760959491187,2.83,191.59,191.52,3.4081933]
[1760959491586,2.83,191.59,191.54,7.5179]
[1760959491787,6.82775604,191.59,191.54,7.5179]
[1760959491990,2.83,191.59,191.54,7.5179]
[1760959492793,6.82775604,191.59,191.54,7.5179]
[1760959493093,2.83,191.59,191.54,7.5179]
[1760959493291,6.82775604,191.59,191.54,7.5179]
[1760959494189,12.62284495,191.59,191.54,2.82]
[1760959494494,2.83,191.58,191.52,8.1065933]
[1760959494794,2.83,191.58,191.52,4.6984]
[1760959495093,7.5271,191.58,191.52,4.6984]
[1760959495296,2.83,191.58,191.5,7.5188]
[1760959495687,10.75825774,191.58,191.5,7.5188]
[1760959495994,2.83,191.58,191.5,7.5188]
[1760959496387,4.6974,191.57,191.51,4.6986]
[1760959497791,4.6974,191.57,191.54,2.82]
[1760959498493,7.5274,191.57,191.52,7.5184]
[1760959498691,2.83,191.56,191.5,4.6988]
[1760959500497,8.21156184,191.62,191.53,2.82]
[1760959500498,13.10969796,191.61,191.53,2.82]
[1760959500697,4.6964,191.61,191.53,2.82]
[1760959501197,7.63336854,191.66,191.56,2.82]
[1760959501399,7.93930395,191.65,191.59,2.82]
[1760959501591,4.6949,191.67,191.59,7.5166]
[1760959501792,3.98975707,191.66,191.59,7.5166]
[1760959501995,2.83,191.67,191.59,7.5166]
[1760959502191,4.48070664,191.7,191.59,2.82]
[1760959502495,4.80336854,191.72,191.54,9.3957]
[1760959502496,2.83,191.75,191.64,2.82]
[1760959502692,8.68114867,191.74,191.65,4.6951]
[1760959503001,3.98804867,191.73,191.65,4.6951]
[1760959503304,4.80336854,191.77,191.6,3.4081933]
[1760959503305,7.63336854,191.79,191.7,2.82]
[1760959503495,3.98261565,191.78,191.7,2.82]
[1760959503695,3.98261565,191.77,191.7,2.82]
[1760959503998,3.98261565,191.78,191.7,2.82]
[1760959504199,2.83,191.76,191.66,10.9229933]
[1760959504395,2.83,191.76,191.66,6.2281933]
[1760959505194,2.83,191.76,191.67,7.5145]
[1760959505397,2.83,191.76,191.67,2.82]
[1760959505605,2.83,191.76,191.54,9.3957]
[1760959505606,2.83,191.76,191.63,3.4081933]
[1760959505805,2.83,191.76,191.54,9.3957]
[1760959505806,2.83,191.69,191.6,3.4081933]
[1760959506103,2.83,191.68,191.55,2.82]
[1760959506404,7.5254,191.65,191.55,2.82]
[1760959506802,6.96697001,191.65,191.52,3.4081933]
[1760959507107,2.83,191.62,191.52,4.6982]
[1760959508001,4.6963,191.61,191.52,4.6982]
[1760959508206,4.6963,191.61,191.53,2.82]
[1760959508399,2.83,191.67,191.56,2.82]
[1760959509410,2.83,191.67,191.52,2.82]
[1760959509902,2.83,191.67,191.59,4.6965]
[1760959510309,2.83,191.67,191.58,2.82]
[1760959510510,4.6941,191.7,191.61,7.516]
[1760959513011,4.6941,191.7,191.62,4.6958]
[1760959513213,4.6941,191.7,191.61,2.82]
[1760959513917,4.6941,191.7,191.61,7.5162]
[1760959515211,6.93485332,191.75,191.61,2.82]
[1760959515416,2.87,191.75,191.64,2.78]
[1760959515618,7.563,191.75,191.67,4.6946]
[1760959516817,4.6932,191.74,191.65,4.6952]
[1760959517017,2.87,191.75,191.65,4.6952]
[1760959518019,4.6935,191.73,191.65,4.6952]
[1760959518611,4.6938,191.71,191.65,4.6952]
[1760959519208,4.6938,191.71,191.64,2.78]
[1760959520915,4.6938,191.71,191.64,7.4753]
[1760959522322,4.6933,191.74,191.64,2.78]
[1760959522521,2.86,191.76,191.64,2.78]
[1760959522820,2.86,191.83,191.67,8.21663581]
[1760959523013,4.692,191.79,191.68,2.78]
[1760959523215,7.552,191.79,191.68,2.78]
[1760959523723,4.6923,191.78,191.68,2.78]
[1760959523923,2.86,191.79,191.68,2.78]
[1760959525024,4.693,191.75,191.68,7.4745]
[1760959525827,4.6932,191.74,191.66,4.6949]
[1760959526218,4.6932,191.74,191.64,2.78]
[1760959526925,7.5527,191.76,191.67,2.78]
[1760959527325,2.86,191.81,191.67,8.21663581]
[1760959527622,4.692,191.79,191.68,2.78]
[1760959529021,4.692,191.79,191.72,4.6934]
[1760959529334,7.5522,191.78,191.72,4.6934]
[1760959529923,2.86,191.78,191.72,4.6934]
[1760959530725,2.86,191.78,191.73,4.6932]
[1760959530925,2.86,191.78,191.74,2.78]
[1760959531617,2.86,191.78,191.73,4.6932]
[1760959532138,7.5522,191.78,191.71,4.6937]
[1760959532440,28.5606,191.86,191.7,2.78]
[1760959532441,2.86,191.83,191.7,2.78]
[1760959533237,2.86,191.9,191.72,2.78]
[1760959533531,12.15055446,191.9,191.78,7.4719]
[1760959533727,2.86,191.88,191.78,7.4719]
[1760959534730,2.86,191.88,191.79,4.6916]
[1760959534731,4.6905,191.85,191.79,4.6916]
[1760959535030,7.5505,191.85,191.79,4.6916]
[1760959535630,2.86,191.85,191.8,7.4715]
[1760959536020,2.86,191.89,191.72,2.78]
[1760959536334,2.86,191.85,191.72,2.78]
[1760959537128,12.15844927,191.89,191.72,2.78]
[1760959537336,2.86,191.9,191.76,2.78]
[1760959537835,2.86,191.91,191.79,4.6918]
[1760959538035,2.86,191.91,191.76,2.78]
[1760959538238,7.5503,191.86,191.78,4.6919]
[1760959539532,4.6905,191.85,191.78,4.6919]
[1760959539725,2.86,191.84,191.78,4.6919]
[1760959540434,2.86,191.84,191.79,7.4717]
[1760959542930,4.78177752,191.91,191.71,8.21663581]
[1760959542931,7.5506,191.85,191.77,4.6923]
[1760959543131,7.5506,191.85,191.75,2.78]
[1760959544130,2.86,191.85,191.79,7.4717]
[1760959544334,2.86,191.85,191.79,2.78]
[1760959544532,4.78177752,191.91,191.79,2.78]
[1760959544533,2.86,191.89,191.79,2.78]
[1760959545044,4.6898,191.88,191.79,2.78]
[1760959546043,4.6898,191.88,191.82,4.691]
[1760959546339,2.86,191.86,191.79,2.78]
[1760959546645,2.86,191.86,191.8,4.6915]
[1760959547037,2.86,191.85,191.74,2.78]
[1760959547945,2.86,191.85,191.77,2.69]
[1760959548948,2.86,191.85,191.79,4.6917]
[1760959550351,2.77,191.84,191.8,4.6914]
[1760959551547,2.77,191.84,191.8,7.3814]
[1760959552553,4.6902,191.86,191.8,4.6914]
[1760959552865,7.4605,191.85,191.78,4.692]
[1760959554462,4.6907,191.84,191.78,4.692]
[1760959554655,2.77,191.83,191.78,4.692]
[1760959554856,2.77,191.83,191.78,7.382]
[1760959555264,2.77,191.83,191.79,2.69]
[1760959555855,4.6907,191.84,191.8,2.69]
[1760959556056,4.6907,191.84,191.78,4.692]
[1760959556859,2.77,191.85,191.79,4.6917]
[1760959557258,4.78177752,191.91,191.74,2.69]
[1760959557259,2.77,191.88,191.74,2.69]
[1760959557668,7.4597,191.88,191.81,4.6912]
[1760959558166,7.4597,191.88,191.8,2.69]
[1760959558363,4.57756132,191.9,191.8,2.69]
[1760959558564,3.93524774,191.9,191.8,2.69]
[1760959558776,2.77,191.91,191.8,2.69]
[1760959559068,6.70524774,191.91,191.8,2.69]
[1760959559268,2.77,191.91,191.8,2.69]
[1760959559468,6.70524774,191.91,191.8,2.69]
[1760959559661,2.77,191.91,191.8,2.69]
[1760959559861,6.70524774,191.91,191.8,2.69]
[1760959560061,7.4598,191.88,191.82,4.691]
[1760959560868,7.46,191.87,191.8,7.3815]
[1760959561062,7.46,191.87,191.8,2.69]
[1760959562070,7.46,191.87,191.81,4.6912]
[1760959562463,2.77,191.87,191.81,4.6912]
[1760959562867,2.77,191.87,191.82,7.381]
[1760959563061,2.77,191.87,191.82,4.691]
[1760959563369,2.77,191.87,191.83,2.69]
[1760959564271,2.77,191.86,191.79,2.69]
[1760959564871,2.77,191.86,191.82,4.691]
[1760959565062,2.77,191.9,191.82,7.381]
[1760959565467,2.77,191.9,191.84,4.6906]
[1760959565867,5.43405149,191.94,191.82,2.69]
[1760959565868,8.49817201,191.93,191.82,2.69]
[1760959566074,2.77,191.94,191.82,2.69]
[1760959566573,4.6885,191.93,191.86,4.6899]
[1760959567174,2.77,191.94,191.85,2.69]
[1760959567764,2.77,191.94,191.86,4.69]
[1760959568373,2.77,191.94,191.85,2.69]
[1760959568566,2.77,191.94,191.84,4.6905]
[1760959568770,2.77,191.93,191.84,4.6905]
[1760959568976,6.68558259,191.93,191.84,7.3805]
[1760959569179,2.77,191.93,191.84,7.3805]
[1760959569364,2.77,191.92,191.84,7.3805]
[1760959569570,2.77,191.91,191.84,7.3805]
[1760959569774,4.6893,191.9,191.84,7.3805]
[1760959569965,2.77,191.91,191.82,4.691]
[1760959570471,4.6895,191.89,191.83,4.6908]
[1760959572767,6.86248052,191.89,191.83,4.6908]
[1760959576274,4.6897,191.88,191.83,4.6908]
[1760959576584,2.8,191.86,191.83,4.6908]
[1760959576982,2.8,191.86,191.81,7.3812]
[1760959577186,2.17298052,191.85,191.81,7.3812]
[1760959577489,2.17298052,191.85,191.82,2.82]
[1760959577685,2.17298052,191.87,191.83,2.82]
[1760959577878,2.17298052,191.87,191.81,4.6912]
[1760959578084,4.6902,191.86,191.82,2.82]
[1760959578284,2.86,191.85,191.82,2.82]
[1760959578686,4.6902,191.86,191.82,2.82]
[1760959579085,2.17298052,191.83,191.74,2.82]
[1760959579286,2.17298052,191.8,191.74,2.82]
[1760959581388,2.17298052,191.78,191.74,2.82]
[1760959581588,2.86,191.77,191.74,2.82]
[1760959581786,5.03298052,191.76,191.71,4.6937]
[1760959582092,5.03298052,191.76,191.72,2.82]
[1760959582680,2.17298052,191.76,191.71,4.6937]
[1760959582886,5.03298052,191.76,191.72,2.82]
[1760959584082,2.17298052,191.75,191.72,2.82]
[1760959584691,5.03298052,191.75,191.69,4.6942]
[1760959584892,5.03298052,191.75,191.69,7.5142]
[1760959585090,2.17298052,191.73,191.69,7.5142]
[1760959585290,2.17298052,191.73,191.67,7.5147]
[1760959585491,2.17298052,191.71,191.63,2.82]
[1760959585687,2.17298052,191.73,191.65,2.82]
[1760959585881,2.17298052,191.73,191.66,4.6948]
[1760959586088,5.03298052,191.75,191.67,2.82]
[1760959586790,2.17298052,191.73,191.67,2.82]
[1760959587693,4.78177752,191.82,191.67,2.82]
[1760959587694,7.64177752,191.82,191.67,2.82]
[1760959587999,2.17298052,191.84,191.77,2.82]
[1760959588205,2.86,191.83,191.77,2.82]
[1760959588500,2.86,191.83,191.78,2.17298052]
[1760959588794,1.8624,191.85,191.78,2.17298052]
[1760959588795,4.03538052,191.85,191.78,2.17298052]
[1760959588989,2.86,191.84,191.77,7.5121]
[1760959589194,2.17298052,191.81,191.73,4.99298052]
[1760959589592,2.17298052,191.79,191.73,2.82]
[1760959590694,2.86,191.8,191.73,2.82]
[1760959591094,7.5518,191.8,191.73,2.82]
[1760959592286,7.5518,191.8,191.65,10.92]
[1760959592287,5.43771215,191.81,191.69,7.5141]
[1760959592600,6.93076956,191.8,191.69,2.82]
[1760959592795,6.93076956,191.8,191.62,5.43771215]
[1760959592796,4.07076956,191.79,191.63,2.82]
[1760959593000,2.86,191.77,191.63,2.82]
[1760959593395,2.86,191.81,191.68,2.82]
[1760959594398,7.5514,191.81,191.73,4.6931]
[1760959594700,7.5514,191.81,191.74,2.82]
[1760959595393,2.86,191.81,191.74,2.82]
[1760959596096,2.86,191.81,191.75,4.6926]
[1760959597495,2.86,191.81,191.77,2.82]
[1760959597705,7.07850216,191.84,191.76,7.5124]
[1760959598305,7.078547,191.84,191.76,7.5124]
[1760959598600,2.86,191.84,191.76,7.5124]
[1760959598800,4.7224,191.85,191.79,2.82]
[1760959600097,4.7224,191.85,191.8,7.5116]
[1760959601408,2.86,191.84,191.8,7.5116]
[1760959602105,1.8624,191.85,191.82,2.82]
[1760959602306,1.8624,191.85,191.79,2.82]
[1760959602703,1.8624,191.85,191.83,4.6906]
[1760959602908,1.8624,191.85,191.84,2.82]
[1760959603993,4.7224,191.85,191.81,7.5112]
[1760959604202,1.8624,191.85,191.82,2.82]
[1760959607310,1.8624,191.85,191.82,7.5109]
[1760959608906,1.8624,191.85,191.83,7.4006]
[1760959609114,1.8624,191.85,191.84,2.71]
[1760959612518,1.8624,191.85,191.84,4.88268246]
[1760959612716,1.8624,191.85,191.84,2.71]
[1760959616612,68.97216746,191.8,191.79,3.39413254]
[1760959617814,68.97216746,191.8,191.79,4.6918]
[1760959618620,68.97216746,191.8,191.79,7.4018]
[1760959620417,53.05456746,191.8,191.71,26.64]
[1760959620612,53.05456746,191.8,191.76,3.39413254]
[1760959621017,53.05456746,191.8,191.79,2.71]
[1760959621325,53.05456746,191.8,191.78,4.692]
[1760959621716,53.05456746,191.8,191.75,3.39413254]
[1760959622016,53.05456746,191.8,191.76,2.71]
[1760959622218,43.94996746,191.8,191.78,4.6919]
[1760959622524,4.5624,191.85,191.79,2.71]
[1760959623322,4.5624,191.85,191.84,4.6906]
[1760959623514,1.8624,191.85,191.84,4.6906]
[1760959623824,0.47196746,191.85,191.84,7.4006]
[1760959624418,0.47196746,191.85,191.84,8.4406]
[1760959624616,6.746e-05,191.85,191.84,8.4406]
[1760959625820,6.746e-05,191.85,191.84,4.6906]
[1760959626123,2.70006746,191.85,191.84,4.6906]
[1760959626921,6.746e-05,191.85,191.84,4.6906]
[1760959631132,6.746e-05,191.85,191.82,4.6911]
[1760959633127,6.746e-05,191.85,191.83,4.6907]
[1760959633729,10.78373254,191.89,191.83,4.6907]
[1760959634234,7.3896,191.89,191.83,4.6907]
[1760959634541,2.7,191.89,191.83,4.6907]
[1760959635835,2.7,191.89,191.84,4.6905]
[1760959636039,2.7,191.89,191.81,2.88]
[1760959636932,4.6885,191.93,191.84,2.88]
[1760959637934,4.6885,191.93,191.87,4.6897]
[1760959638541,4.6885,191.93,191.87,7.3097]
[1760959639437,2.67,191.94,191.87,2.62]
[1760959639637,8.4473513,191.98,191.87,2.62]
[1760959639837,6.83489537,191.97,191.87,2.62]
[1760959640042,8.76269537,191.96,191.87,2.62]
[1760959640242,2.76,191.97,191.87,2.62]
[1760959640430,4.07556291,191.96,191.87,2.62]
[1760959640637,2.76,191.97,191.87,2.62]
[1760959640836,4.07564413,191.96,191.87,2.62]
[1760959641038,4.688,191.95,191.89,4.6893]
[1760959642142,7.448,191.95,191.89,4.6893]
[1760959642747,2.76,191.95,191.89,4.6893]
[1760959643653,7.448,191.95,191.89,4.6893]
[1760959643843,7.448,191.95,191.91,2.62]
[1760959644036,11.20837987,191.99,191.92,2.62]
[1760959644340,8.76295697,191.98,191.92,2.62]
[1760959644538,2.76,191.97,191.9,4.689]
[1760959644734,2.76,191.95,191.9,4.689]
[1760959644938,4.6878,191.96,191.9,4.689]
[1760959644939,2.76,191.94,191.9,4.689]
[1760959645140,2.76,191.94,191.9,7.309]
[1760959645742,2.76,191.94,191.9,2.62]
[1760959645949,2.76,191.94,191.88,2.62]
[1760959646448,2.76,192.0,191.88,2.62]
[1760959646642,2.76,191.98,191.88,2.62]
[1760959646844,4.6875,191.97,191.91,7.3087]
[1760959647246,4.6866,192.01,191.93,4.6884]
[1760959647447,4.0464744,192.0,191.92,2.62]
[1760959647748,2.76,191.99,191.88,2.62]
[1760959648136,4.6876,191.97,191.91,4.6888]
[1760959648442,2.76,191.97,191.88,2.62]
[1760959648949,6.80584176,191.97,191.88,2.62]
[1760959649649,4.6881,191.95,191.89,4.6893]
[1760959649847,2.76,191.97,191.89,4.6893]
[1760959650052,6.80715016,191.97,191.89,4.6893]
[1760959650255,7.4475,191.97,191.91,4.6889]
[1760959651248,2.76,191.97,191.93,2.62]
[1760959651752,3.39413254,192.01,191.84,9.3812]
[1760959651753,2.76,191.96,191.91,4.6888]
[1760959652055,2.76,191.97,191.91,4.6888]
[1760959652249,2.76,191.97,191.89,4.6893]
[1760959653052,2.76,191.95,191.89,4.6893]
[1760959653250,2.76,191.95,191.88,2.62]
[1760959653456,4.04663708,191.97,191.87,4.6898]
[1760959653757,2.76,191.94,191.84,2.62]
[1760959653947,3.39413254,191.92,191.83,4.6908]
[1760959654252,2.76,191.91,191.83,4.6908]
[1760959654453,4.6896,191.89,191.81,4.6912]
[1760959654656,2.76,191.88,191.81,4.6912]
[1760959655357,2.76,191.88,191.79,4.6917]
[1760959655555,3.39413254,191.88,191.79,4.6917]
[1760959655850,2.76,191.87,191.77,3.39413254]
[1760959656049,2.76,191.86,191.77,4.6922]
[1760959656858,4.6906,191.85,191.77,4.6922]
[1760959657762,4.6906,191.85,191.78,4.6919]
[1760959658950,4.6906,191.85,191.76,7.3125]
[1760959659453,4.6906,191.85,191.76,2.62]
[1760959659659,2.76,191.86,191.78,4.6919]
[1760959660261,2.76,191.86,191.79,2.62]
[1760959660656,4.6895,191.89,191.79,2.62]
[1760959660857,2.76,191.87,191.79,7.3117]
[1760959661360,2.76,191.87,191.8,4.6914]
[1760959661854,2.76,191.87,191.79,2.62]
[1760959662458,2.76,191.87,191.81,4.6912]
[1760959663665,2.76,191.87,191.79,7.3118]
[1760959665058,7.45,191.87,191.79,7.3118]
[1760959665255,2.76,191.87,191.79,2.62]
[1760959666653,2.76,191.87,191.82,4.691]
[1760959666858,3.39413254,191.92,191.83,2.62]
[1760959666859,2.76,191.91,191.83,2.62]
[1760959667560,2.76,191.91,191.8,3.39413254]
[1760959667766,2.66,191.91,191.8,2.64]
[1760959668353,2.66,191.87,191.8,2.64]
[1760959668556,2.66,191.87,191.77,6.03413254]
[1760959669963,7.35,191.87,191.79,4.6917]
[1760959670667,4.6903,191.86,191.79,4.6917]
[1760959673970,4.6903,191.86,191.79,7.3317]
[1760959674373,2.66,191.87,191.8,4.6915]
[1760959674762,2.66,191.87,191.81,2.17306166]
[1760959675468,2.66,191.87,191.8,4.6915]
[1760959675765,2.66,191.84,191.79,2.64]
[1760959675967,2.66,191.83,191.79,2.17306166]
[1760959676767,2.66,191.83,191.79,4.81306166]
[1760959678773,2.17306166,191.87,191.79,2.17306166]
[1760959678976,9.3774,191.92,191.77,2.17306166]
[1760959678977,2.66,191.84,191.77,2.17306166]
[1760959680069,4.691,191.83,191.77,2.17306166]
[1760959681276,2.66,191.84,191.79,2.17306166]
[1760959681475,2.66,191.84,191.8,2.64]
[1760959681679,72.8524,192.14,191.8,2.64]
[1760959681680,2.66,191.88,191.81,2.17306166]
[1760959682177,2.66,191.88,191.8,2.64]
[1760959682178,2.66,191.87,191.8,2.64]
[1760959683070,7.3505,191.85,191.79,9.50476166]
[1760959683869,2.66,191.83,191.77,2.17306166]
[1760959684973,2.66,191.83,191.79,4.6918]
[1760959685772,2.66,191.85,191.77,2.64]